bitfinex-derivatives/quotes_SOLF0:USTF0_20250424
["timestamp","ask_amount","ask_price","bid_price","bid_amount"]
[1745484265877,6.8544,145.88,145.82,32.92]
[1745484266183,6.8544,145.88,145.85,6.8551]
[1745484266477,6.8538,145.89,145.82,32.92]
[1745484266681,32.92,145.91,145.82,50.00019036]
[1745484267082,39.773,145.91,145.82,50.00019036]
[1745484267282,39.773,145.91,145.85,17.08019036]
[1745484267473,6.853,145.91,145.85,17.08019036]
[1745484267675,6.853,145.91,145.86,32.92]
[1745484268483,6.853,145.91,145.88,6.8538]
[1745484268678,579.5218,145.95,145.86,32.92]
[1745484268985,17.08019036,145.93,145.81,50.00019036]
[1745484269183,17.08019036,145.93,145.85,6.8555]
[1745484269382,6.8543,145.88,145.85,6.8555]
[1745484269683,17.08019036,145.93,145.85,6.8555]
[1745484269885,17.08019036,145.93,145.81,50.00019036]
[1745484270185,36.7618,145.95,145.81,63.71479036]
[1745484270379,6.8521,145.93,145.9,6.8528]
[1745484270585,36.7618,145.95,145.87,50.00019036]
[1745484270881,41.6957,145.95,145.92,6.8519]
[1745484271180,2.0105,145.97,145.87,50.00019036]
[1745484271384,2.0105,145.97,145.93,6.8515]
[1745484271583,32.92,145.99,145.93,6.8515]
[1745484271879,6.8501,145.97,145.94,6.8512]
[1745484272181,32.92,145.99,145.91,32.92]
[1745484272385,6.8499,145.97,145.94,6.851]
[1745484272682,32.92,145.99,145.91,32.92]
[1745484273690,1.9978,146.01,145.93,17.08019036]
[1745484274186,8.846,146.01,145.98,6.8491]
[1745484274986,8.846,146.01,145.99,6.8488]
[1745484275386,6.8485,146.0,145.93,17.08019036]
[1745484276386,8.8459,146.01,145.98,6.8491]
[1745484276686,1.9978,146.01,145.93,17.08019036]
[1745484276880,6.8487,146.0,145.97,6.8495]
[1745484277084,6.8487,146.0,145.93,17.08019036]
[1745484277687,6.8487,146.0,145.98,6.8493]
[1745484278089,6.8482,146.01,145.99,6.8489]
[1745484278284,32.92,146.03,145.99,6.8489]
[1745484278484,6.8478,146.02,145.99,6.8489]
[1745484278779,32.92,146.03,145.96,17.08019036]
[1745484278986,6.846,146.06,145.99,17.08019036]
[1745484279179,6.846,146.06,145.99,49.98019036]
[1745484279383,4.0743,146.08,145.99,49.98019036]
[1745484279586,6.8463,146.05,145.99,49.98019036]
[1745484279981,4.0743,146.08,145.99,49.98019036]
[1745484280893,6.8463,146.05,145.99,49.98019036]
[1745484281085,6.8463,146.05,146.02,6.8472]
[1745484281281,4.0743,146.08,145.99,49.98019036]
[1745484281487,62.91613785,146.13,146.02,17.08019036]
[1745484281686,69.07913785,146.13,146.03,32.9]
[1745484281990,17.08019036,146.12,146.03,32.9]
[1745484282589,6.8448,146.08,146.03,32.9]
[1745484282789,6.8448,146.08,146.05,6.8457]
[1745484282990,6.8452,146.07,146.03,32.9]
[1745484283190,17.08019036,146.12,146.03,32.9]
[1745484283392,32.84,146.11,146.03,39.7466]
[1745484283588,6.8455,146.07,146.03,32.9]
[1745484283794,32.84,146.11,146.05,6.8461]
[1745484284095,6.8452,146.07,146.05,6.8461]
[1745484284298,6.8452,146.07,146.04,6.8463]
[1745484284496,32.84,146.11,146.04,6.8463]
[1745484284696,6.8455,146.07,146.04,6.8463]
[1745484285194,6.846,146.06,146.03,39.7469]
[1745484285396,6.846,146.06,146.03,6.8469]
[1745484285692,32.84,146.11,146.02,6.8473]
[1745484285898,6.8461,146.05,146.02,6.8473]
[1745484286199,32.84,146.11,146.02,6.8473]
[1745484286395,6.8464,146.05,146.02,6.8473]
[1745484286696,32.84,146.11,146.01,6.8479]
[1745484286891,17.08019036,146.09,146.01,6.8479]
[1745484287087,6.8468,146.04,146.01,6.8479]
[1745484287294,6.8468,146.04,146.02,6.8474]
[1745484287697,6.8468,146.04,146.0,32.84]
[1745484287998,49.92019036,146.07,145.99,6.8486]
[1745484288299,6.8478,146.02,145.96,36.7869]
[1745484288493,6.8478,146.02,145.99,6.8487]
[1745484289596,6.8473,146.03,146.0,6.8483]
[1745484289993,6.8473,146.03,145.96,36.7869]
[1745484290200,6.8468,146.04,146.01,6.848]
[1745484291601,17.08019036,146.09,146.0,32.84]
[1745484291798,4.0907,146.08,146.0,32.84]
[1745484292099,6.8468,146.04,146.01,6.8476]
[1745484292299,4.0907,146.08,146.0,32.84]
[1745484292699,6.8468,146.04,146.01,6.8477]
[1745484293201,6.8463,146.05,146.02,6.8474]
[1745484293604,6.8466,146.04,146.01,6.8477]
[1745484293901,4.0907,146.08,146.01,6.8477]
[1745484294206,6.8469,146.04,146.01,6.8477]
[1745484294397,4.0907,146.08,146.02,6.8474]
[1745484294706,6.8464,146.05,146.02,6.8474]
[1745484294902,4.0907,146.08,146.02,6.8474]
[1745484295302,6.8464,146.05,146.02,6.8474]
[1745484296002,4.0907,146.08,146.01,6.8478]
[1745484296206,4.0907,146.08,146.0,32.84]
[1745484296505,6.8473,146.03,146.0,39.6883]
[1745484297300,6.8478,146.02,146.0,32.84]
[1745484297504,6.8478,146.02,145.99,6.8489]
[1745484297706,6.8485,146.0,145.96,32.84]
[1745484298206,6.8485,146.0,145.97,6.8495]
[1745484298405,6.8482,146.01,145.96,32.84]
[1745484298903,6.8485,146.0,145.96,32.84]
[1745484299402,6.8485,146.0,145.97,6.8496]
[1745484299604,6.8485,146.0,145.96,32.84]
[1745484300308,6.8482,146.01,145.98,6.8494]
[1745484300505,1.9682,146.05,145.96,32.84]
[1745484301008,6.8478,146.02,145.99,6.8485]
[1745484301510,1.9682,146.05,145.99,6.8485]
[1745484301710,10.67130954,146.04,145.96,32.84]
[1745484301907,6.8496,145.98,145.96,32.84]
[1745484302111,1.9682,146.05,145.96,32.84]
[1745484302112,10.67130954,146.0,145.96,32.84]
[1745484302408,6.85,145.97,145.92,32.84]
[1745484303008,10.67130954,146.0,145.92,32.84]
[1745484303204,10.67130954,145.98,145.9,6.8529]
[1745484303405,10.67130954,145.98,145.89,43.51130954]
[1745484303602,45.59490954,145.98,145.89,43.51130954]
[1745484303806,45.59490954,145.98,145.91,6.8522]
[1745484304111,6.8505,145.96,145.91,10.67130954]
[1745484304314,6.8505,145.96,145.93,6.8515]
[1745484305014,6.85,145.97,145.94,6.8512]
[1745484305308,6.85,145.97,145.91,10.67130954]
[1745484305509,39.6896,145.98,145.95,6.8506]
[1745484306009,3.9353,145.99,145.95,6.8506]
[1745484306509,3.9353,145.99,145.94,6.8511]
[1745484306807,6.8502,145.97,145.94,6.8511]
[1745484307007,3.9353,145.99,145.91,10.67130954]
[1745484307410,6.8497,145.98,145.91,10.67130954]
[1745484307912,43.51130954,146.02,145.93,10.67130954]
[1745484308112,6.8487,146.0,145.97,6.8496]
[1745484308306,32.84,146.02,145.95,10.67130954]
[1745484308813,47.52240954,146.06,146.0,6.8483]
[1745484309014,6.8478,146.02,145.97,43.51130954]
[1745484309321,47.52240954,146.06,145.97,43.51130954]
[1745484309615,6.8473,146.03,146.0,6.8482]
[1745484309820,6.8473,146.03,145.97,43.51130954]
[1745484310119,6.8477,146.02,145.97,43.51130954]
[1745484310320,47.52240954,146.06,145.97,43.51130954]
[1745484311416,6.8468,146.04,146.01,6.8477]
[1745484311723,47.52240954,146.06,145.97,43.51130954]
[1745484311919,6.8478,146.02,145.99,6.8487]
[1745484312222,6.8478,146.02,145.97,43.51130954]
[1745484312422,47.52240954,146.06,145.97,43.51130954]
[1745484312622,6.8473,146.03,146.0,6.848]
[1745484312814,47.52240954,146.06,146.0,6.848]
[1745484313223,6.8473,146.03,146.0,6.848]
[1745484313819,6.8476,146.02,145.99,6.8488]
[1745484314020,10.67130954,146.04,145.94,10.67130954]
[1745484314219,10.67130954,146.04,145.94,43.43130954]
[1745484314623,6.848,146.01,145.97,6.8495]
[1745484314823,10.67130954,146.04,145.97,6.8495]
[1745484315222,6.8488,146.0,145.97,6.8495]
[1745484315521,10.67130954,146.04,145.98,6.8493]
[1745484315819,6.8483,146.01,145.98,6.8493]
[1745484316225,10.67130954,146.02,145.94,32.76]
[1745484316416,10.67130954,146.0,145.94,32.76]
[1745484316722,10.67130954,146.0,145.95,6.8507]
[1745484317124,10.67130954,146.0,145.94,32.76]
[1745484317324,6.8508,145.95,145.94,32.76]
[1745484317525,14.51180954,146.0,145.94,32.76]
[1745484317821,6.8506,145.96,145.94,32.76]
[1745484318024,14.51180954,146.0,145.94,32.76]
[1745484318320,14.51180954,146.0,145.96,6.8502]
[1745484318321,1.9408,146.0,145.96,6.8502]
[1745484318519,32.76,146.02,145.94,43.43130954]
[1745484318918,32.76,146.02,145.96,10.67130954]
[1745484319124,1.8997,146.04,145.96,10.67130954]
[1745484319826,6.8477,146.02,145.99,6.8489]
[1745484320728,6.848,146.01,145.99,6.8489]
[1745484321329,1.8997,146.04,146.0,6.8484]
[1745484321622,36.6564,146.06,145.98,32.76]
[1745484321827,6.8469,146.04,145.98,49.83579197]
[1745484322030,6.8469,146.04,146.01,6.8479]
[1745484322429,6.8473,146.03,145.98,49.83579197]
[1745484322830,1.8982,146.09,145.98,49.83579197]
[1745484323031,6.8459,146.06,145.98,49.83579197]
[1745484323332,6.8459,146.06,146.02,6.8471]
[1745484323729,6.8459,146.06,145.98,49.83579197]
[1745484324230,32.76,146.1,146.01,17.07579197]
[1745484324231,6.8454,146.07,146.01,17.07579197]
[1745484324426,32.76,146.1,146.01,17.07579197]
[1745484324634,6.8439,146.1,146.02,32.76]
[1745484324934,4.0784,146.12,146.02,34.5547]
[1745484325131,575.26,146.14,146.08,6.8446]
[1745484325336,32.76,146.14,146.07,17.07579197]
[1745484325635,62.91613785,146.15,146.09,6.8438]
[1745484326034,62.91613785,146.15,146.12,6.8427]
[1745484326229,62.91613785,146.15,146.1,32.76]
[1745484326435,69.75793785,146.15,146.1,32.76]
[1745484326630,62.91613785,146.15,146.1,32.76]
[1745484326826,62.91613785,146.15,146.06,32.76]
[1745484327634,6.8431,146.12,146.06,32.76]
[1745484328133,49.83579197,146.18,146.06,32.76]
[1745484328432,49.83579197,146.18,146.1,6.8437]
[1745484328633,49.83579197,146.18,146.07,17.07579197]
[1745484328836,49.83579197,146.18,146.06,32.76]
[1745484329036,17.07579197,146.15,146.06,32.76]
[1745484329631,6.8426,146.13,146.06,32.76]
[1745484330235,17.07579197,146.15,146.06,32.76]
[1745484330737,1.9532,146.14,146.06,32.76]
[1745484331236,6.8431,146.12,146.06,32.76]
[1745484331436,1.9532,146.14,146.06,32.76]
[1745484331738,6.8436,146.11,146.08,6.8443]
[1745484331937,17.07579197,146.12,146.06,32.76]
[1745484332438,3.8423,146.13,146.07,6.8449]
[1745484332737,3.8423,146.13,146.06,32.76]
[1745484333041,6.8442,146.09,146.06,39.6054]
[1745484333233,3.8423,146.13,146.06,32.76]
[1745484333637,3.8423,146.13,146.07,6.8447]
[1745484333837,3.8423,146.13,146.06,32.76]
[1745484334737,6.844,146.1,146.07,6.845]
[1745484335347,32.74,146.2,146.06,32.76]
[1745484335534,6.8402,146.18,146.11,17.07579197]
[1745484335735,32.74,146.2,146.11,17.07579197]
[1745484336437,32.74,146.2,146.08,17.07579197]
[1745484336630,17.07579197,146.18,146.08,17.07579197]
[1745484336836,17.07579197,146.18,146.06,49.83579197]
[1745484337028,1.9793,146.17,146.06,49.83579197]
[1745484337229,32.74,146.16,146.06,49.83579197]
[1745484337433,6.8422,146.14,146.09,6.8439]
[1745484337639,32.74,146.16,146.06,49.83579197]
[1745484337840,6.8419,146.14,146.1,6.8436]
[1745484338240,32.74,146.16,146.06,49.83579197]
[1745484339440,6.8419,146.14,146.1,6.8434]
[1745484339839,32.74,146.16,146.06,49.83579197]
[1745484340040,6.8419,146.14,146.1,6.8434]
[1745484340641,6.8419,146.14,146.11,6.8432]
[1745484340841,6.8416,146.15,146.06,49.83579197]
[1745484341738,1.9793,146.17,146.09,17.07579197]
[1745484341936,32.74,146.18,146.09,17.07579197]
[1745484342142,32.74,146.18,146.15,6.841]
[1745484342342,32.74,146.18,146.12,17.07579197]
[1745484342642,32.74,146.18,146.15,6.8411]
[1745484342843,39.58,146.18,146.12,17.07579197]
[1745484343047,39.58,146.18,146.1,38.3665]
[1745484343342,32.74,146.18,146.1,38.3665]
[1745484344440,6.8411,146.16,146.13,6.842]
[1745484344635,32.74,146.18,146.1,38.3665]
[1745484345037,4.0374,146.22,146.1,38.3665]
[1745484345241,4.0374,146.22,146.14,17.07579197]
[1745484345544,6.8389,146.21,146.18,6.8397]
[1745484346245,6.8383,146.22,146.19,6.8395]
[1745484346842,6.8393,146.2,146.17,6.8405]
[1745484347044,33.04,146.23,146.14,33.04]
[1745484347646,6.8394,146.2,146.14,33.04]
[1745484347944,33.04,146.23,146.14,33.04]
[1745484348146,6.8404,146.18,146.14,33.04]
[1745484348646,6.8397,146.19,146.15,6.841]
[1745484348838,33.04,146.23,146.15,6.841]
[1745484349042,33.04,146.23,146.14,33.04]
[1745484349245,33.04,146.23,146.14,50.11579197]
[1745484349846,6.8393,146.2,146.14,50.11579197]
[1745484350045,33.04,146.23,146.14,33.04]
[1745484350948,6.8396,146.19,146.16,6.8406]
[1745484351147,33.04,146.23,146.14,33.04]
[1745484351546,33.04,146.23,146.18,6.8398]
[1745484351848,33.04,146.23,146.14,50.11579197]
[1745484352047,6.8393,146.2,146.16,6.8405]
[1745484352348,33.04,146.23,146.14,50.11579197]
[1745484352542,6.8389,146.21,146.14,50.11579197]
[1745484352749,33.04,146.23,146.14,50.11579197]
[1745484354154,1.8946,146.27,146.14,50.11579197]
[1745484354449,6.838,146.23,146.14,50.11579197]
[1745484354754,6.8383,146.22,146.19,6.8393]
[1745484355051,6.8383,146.22,146.14,50.11579197]
[1745484355252,6.8379,146.23,146.2,6.8387]
[1745484355446,5.7326,146.27,146.14,50.11579197]
[1745484355852,6.8375,146.24,146.21,6.8386]
[1745484356046,6.8375,146.24,146.14,50.11579197]
[1745484356246,5.7326,146.27,146.14,50.11579197]
[1745484356247,5.7326,146.27,146.17,17.07579197]
[1745484356647,33.02,146.28,146.2,17.07579197]
[1745484357150,6.8358,146.27,146.2,17.07579197]
[1745484357349,33.02,146.28,146.2,17.07579197]
[1745484357552,33.02,146.28,146.27,6.8358]
[1745484358051,6.8341,146.31,146.28,6.835]
[1745484358254,38.9359,146.33,146.23,17.07579197]
[1745484358547,6.8342,146.31,146.28,6.8351]
[1745484359052,38.9359,146.33,146.23,17.07579197]
[1745484360449,17.07579197,146.32,146.22,33.02]
[1745484360754,6.8356,146.28,146.22,33.02]
[1745484360943,17.07579197,146.32,146.22,33.02]
[1745484361144,6.8362,146.27,146.23,6.8375]
[1745484361357,33.0,146.29,146.23,6.8375]
[1745484361652,6.8362,146.27,146.23,6.8375]
[1745484362051,33.0,146.29,146.23,6.8375]
[1745484362351,6.8362,146.27,146.23,6.8375]
[1745484362555,33.0,146.29,146.23,6.8375]
[1745484362754,50.07579197,146.29,146.22,33.02]
[1745484362953,50.07579197,146.29,146.18,36.8622]
[1745484363352,50.07579197,146.29,146.18,33.0]
[1745484363752,17.07579197,146.25,146.14,3.9069]
[1745484364055,17.07579197,146.22,146.11,1.7884]
[1745484364357,50.07579197,146.22,146.1,3.9069]
[1745484364755,17.07579197,146.19,146.1,1.9236]
[1745484364946,2.0872,146.18,146.07,33.0]
[1745484365353,6.842,146.14,146.07,33.0]
[1745484365548,2.006,146.17,146.07,33.0]
[1745484366353,2.006,146.17,146.09,17.07579197]
[1745484366752,6.842,146.14,146.1,6.8437]
[1745484367261,2.006,146.17,146.09,17.07579197]
[1745484368056,2.006,146.17,146.12,6.8425]
[1745484368255,2.006,146.17,146.09,17.07579197]
[1745484368650,2.006,146.17,146.07,33.0]
[1745484368651,6.8419,146.14,146.1,6.8435]
[1745484369056,6.8431,146.12,146.08,6.8446]
[1745484369256,1.8905,146.16,146.07,33.02]
[1745484369655,6.8431,146.12,146.08,6.8444]
[1745484369856,1.8905,146.16,146.07,33.02]
[1745484370157,6.8429,146.12,146.07,39.8648]
[1745484370347,6.8429,146.12,146.07,33.02]
[1745484370752,6.8429,146.12,146.08,6.8446]
[1745484370956,1.8905,146.16,146.09,17.07579197]
[1745484371155,2.006,146.17,146.09,17.07579197]
[1745484371546,2.006,146.17,146.07,33.02]
[1745484371857,6.8428,146.12,146.07,33.02]
[1745484372266,2.006,146.17,146.07,33.02]
[1745484372558,6.8426,146.13,146.07,33.02]
[1745484372757,2.006,146.17,146.07,33.02]
[1745484372959,6.843,146.12,146.07,33.02]
[1745484373349,2.006,146.17,146.09,6.8439]
[1745484373553,6.8428,146.13,146.09,6.8439]
[1745484374149,2.006,146.17,146.07,33.02]
[1745484374358,2.006,146.17,146.09,17.07579197]
[1745484374557,2.0872,146.18,146.09,17.07579197]
[1745484374760,6.8402,146.18,146.14,6.8414]
[1745484374953,33.02,146.19,146.11,33.02]
[1745484375155,6.841,146.16,146.13,6.8423]
[1745484375859,6.8407,146.17,146.14,6.8418]
[1745484376360,6.8401,146.18,146.15,6.8414]
[1745484376560,33.02,146.19,146.12,17.07579197]
[1745484376755,2.0826,146.22,146.12,17.07579197]
[1745484377060,6.8389,146.21,146.13,1.8974]
[1745484377452,6.8392,146.2,146.17,6.8402]
[1745484377657,33.44,146.23,146.13,1.8974]
[1745484378057,6.8388,146.21,146.18,6.8397]
[1745484378255,33.44,146.23,146.14,1.9439]
[1745484378463,6.8379,146.23,146.15,17.07579197]
[1745484378661,6.8379,146.23,146.16,33.44]
[1745484379165,6.8379,146.23,146.2,6.8387]
[1745484379657,6.8382,146.22,146.19,6.8395]
[1745484379962,3.9076,146.25,146.16,33.44]
[1745484380661,6.8379,146.23,146.2,6.8388]
[1745484380863,3.9076,146.25,146.16,33.44]
[1745484381162,3.9076,146.25,146.18,6.8397]
[1745484381363,3.9076,146.25,146.16,33.44]
[1745484381657,6.838,146.23,146.16,33.44]
[1745484382363,6.8382,146.22,146.19,6.8392]
[1745484382757,3.9076,146.25,146.16,33.44]
[1745484382963,3.9076,146.25,146.18,6.8397]
[1745484383159,3.9076,146.25,146.16,33.44]
[1745484383160,17.07579197,146.24,146.16,33.44]
[1745484383659,6.8389,146.21,146.18,6.8398]
[1745484383962,17.07579197,146.24,146.16,33.44]
[1745484384163,6.8389,146.21,146.17,6.8401]
[1745484384362,17.07579197,146.24,146.16,33.44]
[1745484384763,17.07579197,146.24,146.18,6.8398]
[1745484384965,17.07579197,146.24,146.16,33.44]
[1745484385264,6.8379,146.23,146.16,33.44]
[1745484385466,3.9076,146.25,146.16,33.44]
[1745484385765,6.8387,146.21,146.18,6.8397]
[1745484387367,6.8384,146.22,146.19,6.8395]
[1745484387568,3.9076,146.25,146.16,33.44]
[1745484388067,6.8385,146.22,146.19,6.8393]
[1745484388469,3.9076,146.25,146.16,33.44]
[1745484388763,17.07579197,146.21,146.1,1.7901]
[1745484388969,17.07579197,146.21,146.11,575.32]
[1745484389164,6.8408,146.17,146.11,575.32]
[1745484389362,2.0313,146.2,146.11,575.32]
[1745484389564,6.8404,146.18,146.11,575.32]
[1745484389862,2.0313,146.2,146.11,575.32]
[1745484390270,6.8405,146.17,146.14,6.8416]
[1745484390464,33.44,146.22,146.11,575.32]
[1745484390663,33.44,146.22,146.12,1.9679]
[1745484391263,6.8395,146.19,146.15,6.8414]
[1745484391465,33.44,146.22,146.12,1.9679]
[1745484392070,6.8394,146.2,146.16,6.8407]
[1745484392470,6.8394,146.2,146.12,1.9679]
[1745484392666,6.8394,146.2,146.17,6.8402]
[1745484393273,6.8387,146.21,146.18,6.8398]
[1745484394273,40.2783,146.22,146.19,6.8394]
[1745484394671,6.8387,146.21,146.18,6.8397]
[1745484395170,12.70307977,146.24,146.1,12.43417977]
[1745484395171,10.64407977,146.2,146.1,12.43417977]
[1745484395367,10.64407977,146.2,146.12,10.64407977]
[1745484395975,6.8397,146.19,146.15,6.8411]
[1745484396168,10.64407977,146.2,146.15,6.8411]
[1745484396374,10.64407977,146.22,146.15,6.8411]
[1745484396573,6.8403,146.18,146.15,6.8411]
[1745484397376,6.8405,146.17,146.14,6.8417]
[1745484397674,10.64407977,146.22,146.12,10.64407977]
[1745484397866,6.8402,146.18,146.15,6.8412]
[1745484398475,6.8398,146.19,146.14,10.64407977]
[1745484398869,6.8404,146.18,146.14,6.8417]
[1745484399069,6.8404,146.18,146.12,10.64407977]
[1745484399478,6.8398,146.19,146.16,6.8407]
[1745484399773,10.64407977,146.2,146.11,33.44]
[1745484400072,33.44,146.22,146.11,33.44]
[1745484400278,10.64407977,146.16,146.06,45.87497977]
[1745484400475,10.64407977,146.14,146.06,35.2309]
[1745484400781,10.64407977,146.12,146.06,33.44]
[1745484401681,6.8445,146.09,146.06,6.8454]
[1745484401978,6.8445,146.09,146.04,4.0324]
[1745484402180,6.844,146.1,146.07,6.8452]
[1745484404379,6.844,146.1,146.08,6.8447]
[1745484404682,6.844,146.1,146.04,4.0324]
[1745484404983,6.844,146.1,146.07,6.8448]
[1745484405185,17.05808051,146.14,146.04,4.0324]
[1745484405484,17.05808051,146.14,146.09,6.844]
[1745484405681,6.8431,146.12,146.09,6.844]
[1745484405883,17.05808051,146.14,146.04,4.0324]
[1745484406082,17.05808051,146.14,146.08,6.8443]
[1745484406284,6.8433,146.12,146.04,4.0324]
[1745484406483,17.05808051,146.14,146.04,4.0324]
[1745484406685,6.845,146.08,146.02,33.44]
[1745484406885,6.845,146.08,146.01,51.52898051]
[1745484407084,49.73808051,146.11,146.04,6.8462]
[1745484407284,49.73808051,146.11,146.01,32.68]
[1745484407789,6.8451,146.08,146.04,6.8462]
[1745484408088,49.73808051,146.11,146.04,6.8462]
[1745484408491,6.8452,146.07,146.04,6.8462]
[1745484409392,6.8452,146.07,146.05,6.8461]
[1745484409689,49.73808051,146.11,146.01,32.68]
[1745484410190,32.68,146.11,146.01,32.68]
[1745484410887,17.05808051,146.09,146.01,32.68]
[1745484411997,6.846,146.06,146.03,6.8467]
[1745484412694,6.8451,146.08,146.01,32.68]
[1745484412996,32.68,146.11,146.01,49.73808051]
[1745484413389,6.8442,146.09,146.01,49.73808051]
[1745484413893,6.844,146.1,146.06,6.8452]
[1745484414093,32.68,146.11,146.01,49.73808051]
[1745484415197,6.8444,146.09,146.07,6.8451]
[1745484415394,6.8444,146.09,146.01,49.73808051]
[1745484415594,32.68,146.11,146.01,49.73808051]
[1745484415794,6.845,146.08,146.05,6.8457]
[1745484415993,17.05808051,146.1,146.01,32.68]
[1745484416390,6.845,146.08,146.05,6.8458]
[1745484417301,6.8452,146.07,146.04,6.8464]
[1745484417695,17.05808051,146.1,146.01,32.68]
[1745484418491,17.05808051,146.07,145.97,34.4924]
[1745484418795,32.7,146.06,145.97,34.4924]
[1745484418994,6.8462,146.05,146.02,6.8472]
[1745484419195,32.7,146.06,145.97,34.4924]
[1745484419598,6.8463,146.05,145.97,34.4924]
[1745484419796,32.7,146.06,145.97,34.4924]
[1745484420099,6.8463,146.05,146.02,6.8473]
[1745484420791,6.8467,146.04,146.01,6.8478]
[1745484420992,32.7,146.06,145.97,32.7]
[1745484421693,6.8468,146.04,146.01,6.8479]
[1745484421897,32.7,146.06,145.97,32.7]
[1745484422292,6.8464,146.05,146.02,6.8472]
[1745484422488,6.8464,146.05,145.97,32.7]
[1745484422694,32.7,146.06,145.97,32.7]
[1745484422895,39.5459,146.06,146.03,6.8469]
[1745484423093,32.7,146.06,145.97,32.7]
[1745484423502,17.05808051,146.04,145.97,32.7]
[1745484424196,6.8474,146.03,145.97,32.7]
[1745484424799,6.8476,146.02,145.97,32.7]
[1745484424999,17.05808051,146.05,145.97,32.7]
[1745484425202,17.05808051,146.05,146.0,6.8484]
[1745484425400,10.67262494,146.04,146.0,6.8484]
[1745484425700,10.67262494,146.02,145.97,32.7]
[1745484425901,6.8488,146.0,145.93,43.37262494]
[1745484426203,43.37262494,146.02,145.93,43.37262494]
[1745484426396,6.8487,146.0,145.93,43.37262494]
[1745484427105,6.8487,146.0,145.97,6.8496]
[1745484427402,10.67262494,145.98,145.93,32.7]
[1745484427605,10.67262494,145.96,145.89,574.92]
[1745484427799,6.8511,145.95,145.89,32.7]
[1745484428000,10.67262494,145.94,145.91,6.8524]
[1745484428196,10.67262494,145.94,145.89,32.7]
[1745484428398,43.37262494,145.94,145.86,1.7906]
[1745484429303,43.37262494,145.94,145.9,6.8529]
[1745484429500,43.37262494,145.94,145.86,1.7906]
[1745484430100,6.8527,145.91,145.85,32.7]
[1745484430804,17.52502494,145.92,145.89,6.8536]
[1745484431103,10.67262494,145.92,145.85,32.7]
[1745484431703,17.52492494,145.92,145.9,6.8531]
[1745484432006,10.67262494,145.92,145.85,32.7]
[1745484432204,10.67262494,145.92,145.89,6.8535]
[1745484433006,10.67262494,145.92,145.88,6.8539]
[1745484433205,10.67262494,145.9,145.85,32.7]
[1745484433400,6.8538,145.89,145.81,10.67262494]
[1745484433707,10.67262494,145.9,145.81,43.39262494]
[1745484434304,17.52592494,145.9,145.87,6.8543]
[1745484435703,10.67262494,145.9,145.82,10.67262494]
[1745484435909,10.67262494,145.88,145.81,32.72]
[1745484436308,10.67262494,145.88,145.84,6.8556]
[1745484436601,10.67262494,145.86,145.79,1.9406]
[1745484436808,6.856,145.84,145.81,6.8571]
[1745484437211,10.67262494,145.84,145.81,6.8571]
[1745484437509,10.67262494,145.84,145.82,6.8567]
[1745484437706,32.72,145.86,145.8,10.67262494]
[1745484438210,32.72,145.89,145.8,10.67262494]
[1745484438710,10.67262494,145.86,145.77,32.72]
[1745484439109,17.52872494,145.84,145.81,6.8571]
[1745484439313,10.67262494,145.82,145.74,2.0596]
[1745484439611,39.5776,145.81,145.77,6.8588]
[1745484439810,32.72,145.81,145.74,2.0596]
[1745484440110,5.8919,145.84,145.74,45.45222494]
[1745484440303,43.39262494,145.86,145.76,10.67262494]
[1745484440706,10.67262494,145.84,145.74,2.0596]